Cogmind - Beta 16.1 @@@ ROGUE MODE // 2026.02.06 @ 22:57:42 Player: Selene Result: Escaped! Performance ------------- Evolutions (9) 4500 Regions Visited (23) 4600 Robots Destroyed (146) 730 Value Destroyed (5643) 5643 Prototype IDs (71) 1420 Alien Tech Used (3) 600 Bonus (7434) 7434 TOTAL SCORE: 24927 Bonus ------- High Alert Combat Kills 819 Follower Combat Kills 1057 Hunted by Unchained 1000 Registered with UFD 300 Met Optimus in HQ 500 Met Zhirov 300 Met Optimus at Protoforge 1000 Win 3000 Friendly Fire -542 Cogmind --------- Core Integrity 1600/1600 Matter 158/300 Energy 438/440 System Corruption 0% Temperature Cool (5) Movement Flying (29) Location To Epsilon Eridani Parts ------- > --- POWER (2) -------- Light Quantum Reactor Improved Quantum Reactor > --- PROPULSION (9) --- Nuclear Pulse Array Improved Diametric Drive Impulse Thruster Array Impulse Thruster Array Impulse Thruster Array > --- UTILITY (12) ----- Medium Storage Unit Experimental Optical Array Advanced Sensor Array Advanced Signal Interpreter Experimental Terrain Scan Processor Improved Melee Analysis Suite Experimental Core Analyzer Advanced Transmission Jammer Advanced Reaction Control System Makeshift Propulsion Shielding Centrium Medium Armor Plating Graphene Brace > --- WEAPON (2) ------- Heavy Proton Missile Launcher Ionic Axe > --- INVENTORY (10) --- Cooled Cesium-ion Thruster Electron Diverter Experimental Power Amplifier Nanoactuators Advanced Transmission Jammer Experimental Reaction Control System Improved Force Field Nova Cannon Experimental Jetlance Peak State ------------ > --- POWER ------------ Light Quantum Reactor Improved Quantum Reactor > --- PROPULSION ------- Nuclear Pulse Array Improved Diametric Drive Impulse Thruster Array Impulse Thruster Array Impulse Thruster Array > --- UTILITY ---------- Medium Storage Unit Experimental Optical Array Advanced Sensor Array Advanced Signal Interpreter Experimental Terrain Scan Processor Improved Melee Analysis Suite Experimental Core Analyzer Advanced Transmission Jammer Advanced Reaction Control System Makeshift Propulsion Shielding Centrium Medium Armor Plating Graphene Brace > --- WEAPON ----------- Nova Cannon Ionic Axe > --- INVENTORY -------- Light Quantum Reactor Cooled Cesium-ion Thruster Electron Diverter Experimental Power Amplifier Nanoactuators Advanced Transmission Jammer Experimental Reaction Control System Improved Force Field Heavy Proton Missile Launcher Experimental Jetlance [Rating: 186] Favorites ----------- Power Light Antimatter Reactor Engine Subdweller Power Source Power Core Micro Fission Core Reactor Light Antimatter Reactor Propulsion Impulse Thruster Array Treads Light Treads Wheel Wheel Hover Unit Combat Linear Gravjet Flight Unit Impulse Thruster Array Utility Medium Storage Unit Device Experimental Sensor Array Storage Medium Storage Unit Processor Enhanced Optical Array Hackware Improved Hacking Suite Protection Improved Propulsion Shielding Weapon Improved Grenade Launcher Energy Gun Subdweller Laser Energy Cannon Nova Cannon Ballistic Gun Subdweller Machine Gun Ballistic Cannon Mini Assault Cannon Launcher Improved Grenade Launcher Special Weapon CPS Tube Impact Weapon Great Maul Slashing Weapon Axe Piercing Weapon Enhanced Force Lance Build | -11 -10 -10 -10 -8 -8 -6 -6 -6 -5 -5 -5 -5 -4 -4 -4 -4 -4 -3 -3 -3 -2 -2 -1 ------- Run | Yrd Mat Min Sub Rec Scr Fac Was Fac Fac Upp Upp Zhi Pro Fac Was Fac Ext Res Qua Frg Res Tes Acc Slots Evolved 18 | . . . . . . 8 . . 2 . . . . 2 . . . 2 . . 2 . 2 Power 1 | . . . . . . . . . 1 . . . . . . . . . . . . . . Propulsion 7 | . . . . . . 3 . . 1 . . . . 1 . . . 1 . . 1 . . Utility 10 | . . . . . . 5 . . . . . . . 1 . . . 1 . . 1 . 2 Weapon . | . . . . . . . . . . . . . . . . . . . . . . . . Parts Attached 214 | 4 1 3 16 3 13 19 5 5 13 8 . 2 . 15 2 4 4 32 6 36 6 12 5 Power 35 | . . 1 2 . 3 1 . 1 4 2 . . . 2 . 1 2 7 . 7 . 2 . Engine 5 | . . . 2 . 1 . . . . 1 . . . . . . . 1 . . . . . Core 12 | . . 1 . . 2 1 . 1 3 1 . . . 1 . . . 1 . 1 . . . Reactor 18 | . . . . . . . . . 1 . . . . 1 . 1 2 5 . 6 . 2 . Propulsion 51 | 2 . . 5 . 4 5 2 . 4 1 . 1 . 2 1 1 . 12 4 3 2 1 1 Treads 4 | 2 . . 1 . 1 . . . . . . . . . . . . . . . . . . Leg . | . . . . . . . . . . . . . . . . . . . . . . . . Wheel 7 | . . . 4 . 3 . . . . . . . . . . . . . . . . . . Hover 1 | . . . . . . . . . . . . . . . . . . . . . 1 . . Flight 39 | . . . . . . 5 2 . 4 1 . 1 . 2 1 1 . 12 4 3 1 1 1 Utility 89 | . . 2 4 1 4 10 1 3 5 4 . 1 . 10 . 2 1 9 1 18 4 5 4 Device 37 | . . 1 2 . . 2 1 . 1 1 . . . 7 . 1 . 5 . 7 3 4 2 Storage 6 | . . 1 . . 3 1 . 1 . . . . . . . . . . . . . . . Processor 22 | . . . . . . 5 . 1 2 . . . . 2 . . . 2 1 5 1 1 2 Hackware 5 | . . . . . . 1 . 1 1 . . . . . . 1 . . . 1 . . . Protection 19 | . . . 2 1 1 1 . . 1 3 . 1 . 1 . . 1 2 . 5 . . . Artifact . | . . . . . . . . . . . . . . . . . . . . . . . . Weapon 39 | 2 1 . 5 2 2 3 2 1 . 1 . . . 1 1 . 1 4 1 8 . 4 . Energy Gun 1 | . . . 1 . . . . . . . . . . . . . . . . . . . . Energy Cannon 6 | . . . 1 . . . . 1 . . . . . 1 . . . 1 1 . . 1 . Ballistic Gun 9 | 2 . . 3 . . . . . . . . . . . . . . . . 4 . . . Ballistic Cannon 1 | . . . . . . 1 . . . . . . . . . . . . . . . . . Launcher 5 | . 1 . . 1 . 1 1 . . . . . . . . . . . . . . 1 . Special Weapon 2 | . . . . . . 1 . . . . . . . . . . . 1 . . . . . Impact Weapon 1 | . . . . 1 . . . . . . . . . . . . . . . . . . . Slashing Weapon 7 | . . . . . 2 . 1 . . 1 . . . . . . . 1 . . . 2 . Piercing Weapon 7 | . . . . . . . . . . . . . . . 1 . 1 1 . 4 . . . Special Melee Weapon . | . . . . . . . . . . . . . . . . . . . . . . . . Unidentified Prototypes 34 | . . . 1 . . 2 1 1 . 1 . 2 . . . . . 3 1 17 . 5 . Parts Lost 33 | . . . 5 . . . . . 2 . . . 1 1 . . . 15 . 6 3 . . Power 6 | . . . 1 . . . . . . . . . . . . . . 4 . 1 . . . Propulsion 9 | . . . 1 . . . . . 1 . . . . . . . . 5 . 1 1 . . Utility 8 | . . . . . . . . . . . . . 1 1 . . . 3 . 2 1 . . Weapon 10 | . . . 3 . . . . . 1 . . . . . . . . 3 . 2 1 . . Highest Loss Streak 4 | . . . 3 . . . . . 1 . . . 1 1 . . . 4 . 3 2 . . To Critical Strikes . | . . . . . . . . . . . . . . . . . . . . . . . . Average Backups 8 | 2 4 6 8 5 13 7 8 9 8 7 7 7 8 8 8 9 9 8 9 3 4 9 9 Power . | . . . . . 1 . . . . 1 1 1 1 1 1 1 1 . . . . . . Propulsion 1 | . . . 1 1 . . . 1 1 2 2 2 2 1 1 1 2 1 3 . 1 . 1 Utility 4 | 1 2 3 3 3 7 4 5 4 4 3 3 3 3 3 4 4 4 3 3 1 1 5 5 Weapon 1 | . 1 2 2 1 2 1 2 1 . . 1 1 1 1 1 1 1 1 1 . 1 1 2 Tool/Special . | . . . . . . . . . . . . . . . . . . . . . . . . Unused Backups 88 | . 3 . 7 1 29 10 2 1 1 2 . . . 4 . . 3 10 3 9 1 2 . Power 7 | . 1 . 2 . 2 . . . . . . . . 1 . . 1 . . . . . . Propulsion 14 | . 1 . 1 1 1 1 . . 1 . . . . . . . . 4 1 2 . 1 . Utility 47 | . 1 . 2 . 16 5 2 1 . 2 . . . 3 . . 2 5 1 6 . 1 . Weapon 16 | . . . 2 . 9 3 . . . . . . . . . . . 1 . . 1 . . Tool/Special 4 | . . . . . 1 1 . . . . . . . . . . . . 1 1 . . . Average Slot Usage (%) 86 | . 57 87 99 89 86 65 96 100 87 89 94 89 87 82 89 84 84 85 88 81 74 82 84 Engine 3 | . . . 13 14 2 . . . . 1 4 . 5 1 . . . . . . . . . Core 4 | . . 4 . . 11 3 6 6 2 1 5 5 5 4 5 5 5 2 . . . . . Reactor 2 | . . . . . . . . . 2 3 . 4 . 3 5 5 5 4 9 8 8 8 8 Treads 3 | . 28 28 13 2 . . . . . . . . . . . . . . . . . . . Wheel 8 | . . . 14 25 24 . . . . . . . . . . . . . . . . . . Flight 13 | . . . . . . 11 32 33 28 28 29 27 23 22 26 21 21 24 26 23 21 24 20 Device 9 | . . 12 12 . . 9 10 13 9 10 11 7 10 9 12 9 12 15 15 15 16 16 16 Storage 8 | . . 13 14 14 12 4 6 6 5 5 5 5 5 5 5 5 5 4 4 4 4 4 4 Processor 6 | . . . . . . 14 13 13 9 11 11 11 11 13 15 15 10 14 14 10 4 11 19 Hackware 1 | . . . . . . 1 5 5 5 . . . . . . 1 5 4 4 . . . . Protection 6 | . . . 1 14 5 9 9 6 7 10 11 11 11 9 8 9 7 2 1 6 8 8 8 Energy Gun 1 | . . . 9 . . . . . . . . . . . . . . . . . . . . Energy Cannon 2 | . . . 2 . . . . 4 5 3 3 4 4 5 5 5 4 2 1 3 4 1 3 Ballistic Gun 3 | . 26 28 14 . . . . . . . . . . . . . . . . . . . . Launcher 3 | . 1 . . 15 13 . . . . 4 1 . . . . . . . . . . 1 . Impact Weapon 2 | . . . . 2 11 . . . . . . . . . . . . . . . . . . Slashing Weapon 1 | . . . . . 2 5 8 7 4 2 5 5 5 5 3 . . . 2 . . 2 4 Piercing Weapon 1 | . . . . . . . . . . . . . . . 2 5 5 3 4 3 4 1 . Peak Build Rating 186 | 5 5 11 24 20 27 93 77 81 95 98 97 98 95 121 128 127 129 148 155 181 182 172 186 Average Rating 79 | 4 4 7 15 16 20 69 72 80 86 93 96 93 94 106 124 124 126 138 148 171 170 164 185 On Entrance 86 | 1 5 4 11 17 20 25 65 77 81 92 96 97 95 90 120 127 123 128 148 153 180 153 167 Avg Prop Armor Cover (%) 12 | 27 26 26 14 12 6 6 . . . . . . . . . . . 6 6 . 2 2 . Naked Turns . | . . . . . . . . . . . . . . . . . . . . . . . . Heaviest Build 217 | 3 3 21 31 33 217 30 32 38 44 44 45 45 42 54 54 58 59 61 58 68 68 72 72 Greatest Support 76 | 3 3 40 40 30 30 30 36 38 44 45 45 45 42 54 54 59 59 66 72 72 76 75 76 Greatest Overweight (x) 10 | . . . 2 2 10 3 . . . . . . . 1 1 . . . . . . . . Average Overweight (x) . | . . . . . 3 . . . . . . . . . . . . . . . . . . Largest Inventory Capacity 35 | 5 5 10 10 10 35 15 10 10 10 10 10 10 10 10 10 10 10 10 10 10 10 10 10 Average Capacity 12 | 5 5 9 10 10 21 9 10 10 10 10 10 10 10 10 10 10 10 10 10 10 10 10 10 Most Carried 35 | 4 5 10 10 10 35 14 10 10 10 10 10 10 10 10 10 10 10 10 10 10 10 10 10 Average Carried 10 | 2 4 6 9 9 16 8 9 9 9 9 10 9 10 9 10 9 9 9 9 8 4 9 9 Final Capacity 15 | 5 5 10 10 10 15 10 10 10 10 10 10 10 10 10 10 10 10 10 10 10 10 10 10 Final Carried 15 | 4 5 10 10 10 15 10 10 10 10 10 10 10 10 10 10 10 10 10 10 10 8 10 9 Class Distribution -------------------- 22% | Mutant 20% | Scout 11% | Scavenger-Mutant 9% | Scavenger-Ninja 8% | Hauler-Mutant 7% | Ninja 7% | Sprinter 7% | Scavenger-Scout Dominant Class ---------------- Mutant | -10/Materials Mutant | -10/Mines Scavenger-Mutant | -10/Subcaves Mutant | -8/Recycling Mutant | -8/Scraptown Scout | -6/Factory Sprinter | -6/Waste Sprinter | -6/Factory Sprinter | -5/Factory Scout | -5/Upper Caves Scout | -5/Upper Caves Scout | -5/Zhirov Scout | -4/Proximity Caves Ninja | -4/Factory Scout | -4/Waste Scout | -4/Factory Scout | -4/Extension Ninja | -3/Research Scout | -3/Quarantine Scavenger-Ninja | -3/Protoforge Scavenger-Ninja | -2/Research Scavenger-Ninja | -2/Testing Scavenger-Ninja | -1/Access Resources | -11 -10 -10 -10 -8 -8 -6 -6 -6 -5 -5 -5 -5 -4 -4 -4 -4 -4 -3 -3 -3 -2 -2 -1 ----------- Run | Yrd Mat Min Sub Rec Scr Fac Was Fac Fac Upp Upp Zhi Pro Fac Was Fac Ext Res Qua Frg Res Tes Acc Matter Collected 6469 | 252 60 68 434 85 838 147 247 104 165 287 78 40 61 164 275 60 450 887 231 1391 . 145 . Remotely . | . . . . . . . . . . . . . . . . . . . . . . . . Salvage Created 6130 | 29 101 116 313 . . 103 66 95 464 172 249 186 61 280 . 272 1182 1368 141 712 . 145 75 Parts 283 | 4 9 5 21 . . 7 3 7 16 13 6 1 3 8 . 15 49 69 2 34 . 8 3 Haulers Intercepted 9 | . 1 . . . . . . . 3 . . . . 1 . . 1 2 . . . 1 . Recyclers Shooed . | . . . . . . . . . . . . . . . . . . . . . . . . Parts Field Recycled . | . . . . . . . . . . . . . . . . . . . . . . . . Retrieved Matter . | . . . . . . . . . . . . . . . . . . . . . . . . Parts Self-Destructed 30 | . . . 6 . . . . . . 18 4 1 1 . . . . . . . . . . Prevented . | . . . . . . . . . . . . . . . . . . . . . . . . Parts Restored . | . . . . . . . . . . . . . . . . . . . . . . . . Kills | -11 -10 -10 -10 -8 -8 -6 -6 -6 -5 -5 -5 -5 -4 -4 -4 -4 -4 -3 -3 -3 -2 -2 -1 ------- Run | Yrd Mat Min Sub Rec Scr Fac Was Fac Fac Upp Upp Zhi Pro Fac Was Fac Ext Res Qua Frg Res Tes Acc Combat Hostiles Destroyed 97 | . 3 3 13 . . 4 . 1 . 7 4 . 5 1 . . 15 25 . 16 . . . Melee 21 | . . . . . . . . 1 . . . . . 1 . . 6 7 . 6 . . . Guns 11 | . . 3 7 . . . . . . . . . . . . . . . . 1 . . . AOE 65 | . 3 . 6 . . 4 . . . 7 4 . 5 . . . 9 18 . 9 . . . Classes Destroyed 22 | 1 3 1 3 . . 1 . 1 2 1 . . 1 1 . 1 2 1 . 3 . . . Worker 5 | . . . . . . . . . 2 . . . . 1 . . . 2 . . . . . Builder 6 | . . . . . . . . . . . . . . . . 1 1 4 . . . . . Tunneler 2 | 1 . . . . . . . . . . . . . . . . . 1 . . . . . Hauler 9 | . 1 . . . . . . . 3 . . . . 1 . . 1 2 . . . 1 . Recycler 7 | . . . . . . . . . 1 . . . . 1 . 1 2 1 1 . . . . Mechanic 3 | . . . . . . 1 . . . . . . . . . 1 . 1 . . . . . Operator 6 | . . . . . . . . 1 . . . . . . . 1 1 1 . 1 . 1 . Drone 6 | . . . . . . . . . . . . . 1 . . . . . . 5 . . . Turret 1 | . . . 1 . . . . . . . . . . . . . . . . . . . . Watcher 9 | . 1 . . . . . . 1 . . . . . . . 1 . 2 . 2 . . 2 Swarmer 40 | . 3 . 5 . . 4 . . . 6 4 . 4 . . . . 12 . 2 . . . Grunt 18 | . . 3 1 . . . . 1 . . . . . . . . 8 3 . 2 . . . Brawler 1 | . . . . . . . . . . . . . . . . . . 1 . . . . . Duelist 1 | . . . . . . . . . . . . . . . . . . . . 1 . . . Protector 1 | . . . . . . . . . . . . . . . . . . . . 1 . . . Sentry 4 | . . . 1 . . . . . . . . . . . . . 3 . . . . . . Demolisher 1 | . . . . . . . . . . . . . . . . . . 1 . . . . . Hunter 6 | . . . . . . . . . . . . . . . . . 4 . . 2 . . . Programmer 10 | . . . . . . . . . . . . . . 1 . . . 8 . 1 . . . Behemoth 1 | . . . . . . . . . . 1 . . . . . . . . . . . . . Hotshot 1 | . . . . . . . . . . . . . . . . . . . . 1 . . . Subdweller 6 | . . . 6 . . . . . . . . . . . . . . . . . . . . Scrapoid 1 | . . . . . . . . . . . . . . . . . . . . 1 . . . Savage 1 | . . . . . . . . . . . . . . . . . 1 . . . . . . Best Kill Streak 13 | 1 4 2 5 . . 4 . 1 1 5 4 . 4 1 . 2 7 13 1 4 . 2 1 Combat Bots Only 10 | . 3 2 4 . . 4 . 1 . 5 4 . 4 1 . . 6 10 . 4 . . . Max Kills in Single Turn 6 | 1 2 1 1 . . 4 . 1 1 3 2 . 3 1 . 1 3 6 1 3 . 1 1 Gunslinging . | . . . . . . . . . . . . . . . . . . . . . . . . Exploded 6 | . 2 . 1 . . 4 . . . 3 2 . 3 . . . 2 6 . 3 . . . Melee 1 | . . . . . . . . 1 . . . . . 1 . . 1 1 . 1 . . . Uniques/NPCs Destroyed . | . . . . . . . . . . . . . . . . . . . . . . . . Combat | -11 -10 -10 -10 -8 -8 -6 -6 -6 -5 -5 -5 -5 -4 -4 -4 -4 -4 -3 -3 -3 -2 -2 -1 -------- Run | Yrd Mat Min Sub Rec Scr Fac Was Fac Fac Upp Upp Zhi Pro Fac Was Fac Ext Res Qua Frg Res Tes Acc Hostile Shots Fired 740 | . 8 8 125 . . 11 . 10 10 4 12 . 11 22 . 8 93 193 3 64 99 49 10 Missed 412 | . 5 2 37 . . 7 . 5 5 2 8 . 8 15 . 6 62 105 1 38 60 37 9 Hits 328 | . 3 6 88 . . 4 . 5 5 2 4 . 3 7 . 2 31 88 2 26 39 12 1 Projectile 328 | . 3 6 88 . . 4 . 5 5 2 4 . 3 7 . 2 31 88 2 26 39 12 1 AOE 10 | . . . . . . . . . . . . . . 3 . . . 7 . . . . . Critical Strikes 17 | . . . . . . . . . . . 1 . . . . . 4 8 . 1 3 . . Actively Blocked 15 | . . . . . . . . . . . 1 . . . . . 2 8 . 1 3 . . Damage Taken 8561 | . 26 68 1271 . . 32 . 81 192 88 60 . 76 290 . 47 661 2370 . 1934 1048 298 19 Core 1405 | . . 11 90 . . . . 13 . 9 13 . 18 16 . . 144 472 . 472 104 43 . Absorbed by Shields 72 | . . . . . . . . . . . . . . . . . 72 . . . . . . Redirected to Shielding 328 | . . . . . . 11 . . . 5 18 . 5 35 . . 88 14 . 114 35 3 . Regen/Repaired (Parts) 757 | . . . . . 202 5 111 16 . . . . . 398 . . . . 25 . . . . Core Remaining (%) 81 | 100 . . . . 59 . . 98 . . . . 96 . . . 86 . . 27 . 89 100 Volleys Fired 283 | 3 7 12 83 . . 1 . 1 12 26 7 . 6 7 . 18 12 23 2 54 2 3 4 Largest 2 | 2 2 2 2 . . 1 . 1 1 1 1 . 1 1 . 1 1 1 1 2 1 1 1 Hottest 113 | 40 40 40 90 . . 45 . 90 90 90 90 . 90 105 . 105 105 113 113 113 113 113 113 Shots Fired 333 | 6 12 24 111 . . 1 . 1 12 26 7 . 6 7 . 18 12 23 2 56 2 3 4 Gun 141 | 6 10 24 84 . . . . . . . . . . . . . . . . 17 . . . Cannon 132 | . . . 13 . . . . 1 12 23 5 . 3 7 . 18 6 8 2 26 2 3 3 Launcher 60 | . 2 . 14 . . 1 . . . 3 2 . 3 . . . 6 15 . 13 . . 1 Special . | . . . . . . . . . . . . . . . . . . . . . . . . Kinetic 113 | 6 10 24 56 . . . . . . . . . . . . . . . . 17 . . . Thermal 160 | . . . 41 . . . . 1 12 23 5 . 3 7 . 18 6 8 2 26 2 3 3 Explosive 59 | . 2 . 14 . . 1 . . . 3 2 . 3 . . . 6 15 . 13 . . . Electromagnetic 1 | . . . . . . . . . . . . . . . . . . . . . . . 1 Robot Hit Streak 14 | 2 5 6 14 . . . . . . 5 2 . 1 . . . 4 4 . 6 . . . Robot Miss Streak 6 | 3 1 2 2 . . . . . . 2 2 . 5 . . . 5 6 . 4 . . . Penetration Max . | . . . . . . . . . . . . . . . . . . . . . . . . Secondary Targets 1 | . . . 1 . . . . . . . . . . . . . . . . . . . . Max Gunslinging Chain 1 | . . . 1 . . . . . . . . . . . . . . . . . . . . Shots Hit Robots 252 | 2 6 15 59 . . 2 2 6 15 1 6 11 1 5 . 5 34 34 4 38 1 3 2 Core Hits 388 | 1 6 5 25 . . 8 . 2 6 20 10 1 8 3 . 5 74 122 1 87 . 1 3 Critical Kills . | . . . . . . . . . . . . . . . . . . . . . . . . Critical Parts Destroyed 1 | . . . 1 . . . . . . . . . . . . . . . . . . . . Critical Strikes 17 | . . . 1 . . . . 1 . . . . . . . 1 5 7 . 1 1 . . Destroy 1 | . . . 1 . . . . . . . . . . . . . . . . . . . . Sever 1 | . . . . . . . . 1 . . . . . . . . . . . . . . . Impale 15 | . . . . . . . . . . . . . . . . 1 5 7 . 1 1 . . Melee Attacks 489 | . . . . . . 30 2 19 44 2 8 11 3 52 . 54 49 85 23 68 15 17 7 Impact . | . . . . . . . . . . . . . . . . . . . . . . . . Slashing 196 | . . . . . . 30 2 19 44 2 8 11 3 52 . . . 3 4 . . 11 7 Piercing 293 | . . . . . . . . . . . . . . . . 54 49 82 19 68 15 6 . Sneak Attacks 47 | . . . . . . 1 . 2 8 . . . . 4 . 4 9 4 3 9 . 3 . Combat Hostiles 6 | . . . . . . . . . 1 . . . . 1 . . 3 . . 1 . . . Follow-up Attacks 3 | . . . . . . . . . . . . . . . . . . 1 1 . . 1 . Damage Inflicted 20773 | 23 236 160 1313 . . 311 145 399 1116 647 492 849 254 311 . 499 4229 4417 268 4416 87 444 157 Guns 1391 | 23 67 160 737 . . . . . . . . . . . . . . . . 404 . . . Cannons 135 | . . . . . . . . . . . . . . . . . 108 . . 27 . . . Explosions 9394 | . 169 . 576 . . 204 . . . 647 188 . 254 . . . 1781 2664 . 2850 . . 61 Melee 9853 | . . . . . . 107 145 399 1116 . 304 849 . 311 . 499 2340 1753 268 1135 87 444 96 Ramming . | . . . . . . . . . . . . . . . . . . . . . . . . Kinetic 1190 | 23 67 160 536 . . . . . . . . . . . . . . . . 404 . . . Thermal 371 | . . . 201 . . . . . . . . . . . . . 108 . . 27 . . 35 Explosive 9333 | . 169 . 576 . . 204 . . . 647 188 . 254 . . . 1781 2664 . 2850 . . . Electromagnetic 26 | . . . . . . . . . . . . . . . . . . . . . . . 26 Impact . | . . . . . . . . . . . . . . . . . . . . . . . . Slashing 3781 | . . . . . . 107 145 399 1116 . 304 849 . 311 . . . 107 62 . . 285 96 Piercing 6072 | . . . . . . . . . . . . . . . . 499 2340 1646 206 1135 87 159 . Highest Corruption 7 | . . . . . . 1 1 3 . . . . . . . . . 7 5 7 . . . Average Corruption 4 | . . . . . . 1 1 1 . . . . . . . . . 5 3 5 . . . Corruption Purged 7 | . . . . . . . . . . . . . . . . . . 2 5 . . . . Corruption Blocked . | . . . . . . . . . . . . . . . . . . . . . . . . Effects 86 | . . . . . . 5 2 5 . . . . . . . . . 21 1 52 . . . Message Errors 22 | . . . . . . 2 1 1 . . . . . . . . . 5 . 13 . . . Matter Fused 21 | . . . . . . 3 . 3 . . . . . . . . . 4 . 11 . . . Heat Flow Errors 11 | . . . . . . . . 1 . . . . . . . . . 4 1 5 . . . Energy Discharges 13 | . . . . . . . . . . . . . . . . . . 4 . 9 . . . Parts Rejected 4 | . . . . . . . . . . . . . . . . . . 2 . 2 . . . Data Loss (minor) 10 | . . . . . . . 1 . . . . . . . . . . 1 . 8 . . . Data Loss (major) 3 | . . . . . . . . . . . . . . . . . . 1 . 2 . . . Alerts 2 | . . . . . . . . . . . . . . . . . . . . 2 . . . Overload Shots 42 | . . . . . . . . 1 7 23 5 . 3 3 . . . . . . . . . Effects 3 | . . . . . . . . . . 2 1 . . . . . . . . . . . . Energy Bleed 2 | . . . . . . . . . . 2 . . . . . . . . . . . . . Heat Surge 1 | . . . . . . . . . . . 1 . . . . . . . . . . . . Overflow Damage 2035 | . . . 33 . . 24 39 68 190 . 53 162 15 14 . . 651 308 61 314 14 89 . Projectiles . | . . . . . . . . . . . . . . . . . . . . . . . . Explosions 55 | . . . 33 . . . . . . . . . 15 . . . . 6 . 1 . . . Melee 1980 | . . . . . . 24 39 68 190 . 53 162 . 14 . . 651 302 61 313 14 89 . Knockbacks . | . . . . . . . . . . . . . . . . . . . . . . . . Impact . | . . . . . . . . . . . . . . . . . . . . . . . . Kinetic . | . . . . . . . . . . . . . . . . . . . . . . . . Secondary . | . . . . . . . . . . . . . . . . . . . . . . . . Self-Inflicted Damage 190 | . . . 6 . . . . . . 19 18 . 17 . . . . 97 . 33 . . . Shots 12 | . . . 1 . . . . . . 1 1 . 1 . . . . 6 . 2 . . . Rammed . | . . . . . . . . . . . . . . . . . . . . . . . . Targets Rammed . | . . . . . . . . . . . . . . . . . . . . . . . . Kicked . | . . . . . . . . . . . . . . . . . . . . . . . . Crushed . | . . . . . . . . . . . . . . . . . . . . . . . . Highest Temperature 293 | . . 1 8 . . 2 178 176 108 176 293 3 44 129 . 92 92 135 176 188 22 56 44 Average Temperature 36 | . . 1 4 . . 2 67 83 43 32 26 2 24 48 . 36 37 30 99 80 11 18 22 Received Heat Transfer 903 | . 6 39 369 . . 9 . 12 18 12 . . 18 24 . . 57 102 . 120 99 18 . Siege Activations . | . . . . . . . . . . . . . . . . . . . . . . . . Martial Activations . | . . . . . . . . . . . . . . . . . . . . . . . . Shielding Activations . | . . . . . . . . . . . . . . . . . . . . . . . . Robots Disrupted . | . . . . . . . . . . . . . . . . . . . . . . . . Combat Hostiles . | . . . . . . . . . . . . . . . . . . . . . . . . Robots Corrupted . | . . . . . . . . . . . . . . . . . . . . . . . . Combat Hostiles . | . . . . . . . . . . . . . . . . . . . . . . . . Parts Fried 1 | . . . . . . . . . . . . . . . . . . . . 1 . . . Impact Corruptions . | . . . . . . . . . . . . . . . . . . . . . . . . Robots Melted . | . . . . . . . . . . . . . . . . . . . . . . . . Combat Hostiles . | . . . . . . . . . . . . . . . . . . . . . . . . Parts Melted 1 | . . . . . . . . . . . . . . . . . . . . 1 . . . Heat Transferred 448 | . . . 250 . . . . . . . . . . . . . 111 . . 37 . . 50 Parts Sabotaged . | . . . . . . . . . . . . . . . . . . . . . . . . Parts Stolen . | . . . . . . . . . . . . . . . . . . . . . . . . Parts Stripped . | . . . . . . . . . . . . . . . . . . . . . . . . Power Chain Reactions 1 | . . . . . . . . . . . . . . . . . . . . . . . 1 Alert | -11 -10 -10 -10 -8 -8 -6 -6 -6 -5 -5 -5 -5 -4 -4 -4 -4 -4 -3 -3 -3 -2 -2 -1 ------- Run | Yrd Mat Min Sub Rec Scr Fac Was Fac Fac Upp Upp Zhi Pro Fac Was Fac Ext Res Qua Frg Res Tes Acc Maximum Alert Level 4 | . . . . . . . . 2 2 . . . . . . . 2 4 3 2 1 1 1 Low Security (%) 51 | 100 100 100 . 100 . 100 100 19 24 . . . . 100 100 100 76 . . 12 . 2 67 Level 1 16 | . . . . . . . . 16 62 . . . . . . . 9 18 . 23 100 97 32 Level 2 26 | . . . . . . . . 64 13 . . . . . . . 14 53 38 63 . . . Level 3 2 | . . . . . . . . . . . . . . . . . . 10 61 . . . . Level 4 1 | . . . . . . . . . . . . . . . . . . 18 . . . . . Level 5 . | . . . . . . . . . . . . . . . . . . . . . . . . High Security . | . . . . . . . . . . . . . . . . . . . . . . . . Max Security . | . . . . . . . . . . . . . . . . . . . . . . . . Peak Influence 1420 | 5 83 76 . 117 . 109 30 538 455 . . . . 175 16 78 527 1420 791 665 382 323 248 Initial 789 | . 3 23 . 111 . . 30 . 249 . . . . 150 16 . 33 267 789 331 319 190 183 Average 274 | . 47 13 . 40 . 14 4 368 280 . . . . 69 10 21 176 695 702 455 320 248 187 Influence Increases 8349 | 5 107 136 295 101 . 260 . 954 526 160 155 5 95 537 . 346 1068 1941 111 1006 190 226 125 Destroy 0b10 Robot/C 2880 | . 60 80 160 . . 140 . 440 200 140 80 . 80 20 . 20 460 800 . 200 . . . Destroy 0b10 Robot/NC 360 | 5 10 . . . . 5 . 30 45 . 5 5 5 15 . 25 50 90 5 45 . 10 10 Destroy Leader 498 | . 14 20 . . . 20 . 102 56 20 10 . 10 12 . 2 74 108 . 44 . 2 4 Allied During Kill 578 | . . 6 . . . . . 274 1 . . . . . . . 177 120 . . . . . Successful Hack 690 | . . . . 11 . 19 . 66 46 . . . . 60 . 65 50 108 44 157 12 52 . Select Force Hacks 90 | . . . . 90 . . . . . . . . . . . . . . . . . . . Disable Machine 525 | . 15 . . . . . . 30 60 . . . . 75 . 60 30 30 30 120 . 30 45 Destroy Structure 1353 | . 8 . . . . 46 . 12 88 . . . . 100 . 114 152 400 32 290 48 42 21 Advance Influence 150 | . . . . . . . . . . . . . . 150 . . . . . . . . . Partial Spotted 225 | . . . . . . 30 . . 15 . . . . 60 . 15 15 30 . 15 . 45 . Lose Combat Pursuer 900 | . . 30 135 . . . . . 15 . 60 . . 45 . 45 60 255 . 135 30 45 45 Active Sensor Use 100 | . . . . . . . . . . . . . . . . . . . . . 100 . . Influence Decreases 8101 | . 52 196 63 333 . 173 87 444 659 459 229 9 95 489 48 277 628 1046 925 1027 420 259 183 Entered New Map 2344 | . 2 37 . 121 . . 57 . 261 141 15 4 . . 32 . 36 242 615 259 250 149 123 Time Decay 4527 | . 50 159 53 212 . 153 30 214 318 318 214 5 95 399 16 237 432 464 160 708 140 90 60 Lost Part 280 | . . . 10 . . . . . 20 . . . . 10 . . . 150 . 60 30 . . Lost Ally 800 | . . . . . . 20 . 230 60 . . . . 80 . 40 160 190 . . . 20 . Purge Threat 150 | . . . . . . . . . . . . . . . . . . . 150 . . . . Squads Dispatched 88 | . 2 . . . . 7 . 9 12 . . . . 9 . 7 5 12 2 11 5 4 3 Investigation 48 | . . . . . . 3 . 7 8 . . . . 6 . 2 2 6 . 6 3 3 2 Extermination 18 | . . . . . . 1 . 1 1 . . . . 3 . 2 . 3 2 2 1 1 1 Reinforcement 18 | . 2 . . . . . . 1 3 . . . . . . 3 3 2 . 3 1 . . Assault 1 | . . . . . . . . . . . . . . . . . . 1 . . . . . Garrison 3 | . . . . . . 3 . . . . . . . . . . . . . . . . . Intercept . | . . . . . . . . . . . . . . . . . . . . . . . . Searches Triggered . | . . . . . . . . . . . . . . . . . . . . . . . . Unchained Authorized 1 | . . . . . . . . . . . . . . . . . . . 1 . . . . Construction Impeded 2 | . . . . . . . . . . . . . . . . . 2 . . . . . . Haulers Reinforced 3 | . . . . . . . . 1 1 . . . . . . . . 1 . . . . . Active Scanning Responses 1 | . . . . . . . . . . . . . . . . . . . . . 1 . . Cargo Convoy Interrupts . | . . . . . . . . . . . . . . . . . . . . . . . . Stealth | -11 -10 -10 -10 -8 -8 -6 -6 -6 -5 -5 -5 -5 -4 -4 -4 -4 -4 -3 -3 -3 -2 -2 -1 --------- Run | Yrd Mat Min Sub Rec Scr Fac Was Fac Fac Upp Upp Zhi Pro Fac Was Fac Ext Res Qua Frg Res Tes Acc Distress Signals 23 | . . . . . . . . 1 . . . . . . . 4 2 2 . 12 . 2 . Communications Jammed 52 | . . . . . . . . . . . . . . 2 . 4 . 13 . 3 15 15 . Distress Signals 51 | . . . . . . . . . . . . . . 2 . 4 . 12 . 3 15 15 . Times Spotted 333 | . 8 6 18 . . 8 . 4 10 8 9 . 9 14 . 9 30 68 2 68 32 21 9 Peak Tracking Total 28 | . 4 2 6 . . 4 . 2 5 5 9 . 5 5 . 4 7 13 3 10 28 15 4 Tactical Retreats 35 | . . 1 4 . . . . . 1 . 2 . . 4 . 1 3 10 . 5 1 2 1 ECM-based Alert Blocks 4 | . . . . . . . . . . . . . . 4 . . . . . . . . . Traps | -11 -10 -10 -10 -8 -8 -6 -6 -6 -5 -5 -5 -5 -4 -4 -4 -4 -4 -3 -3 -3 -2 -2 -1 ------- Run | Yrd Mat Min Sub Rec Scr Fac Was Fac Fac Upp Upp Zhi Pro Fac Was Fac Ext Res Qua Frg Res Tes Acc Traps Triggered 19 | . . . 1 . . 2 . 1 3 . . . . 6 . . . 2 . 3 1 . . Indirectly . | . . . . . . . . . . . . . . . . . . . . . . . . Trap Hack Attempts . | . . . . . . . . . . . . . . . . . . . . . . . . Triggered . | . . . . . . . . . . . . . . . . . . . . . . . . Disarmed . | . . . . . . . . . . . . . . . . . . . . . . . . Reprogrammed . | . . . . . . . . . . . . . . . . . . . . . . . . Reused . | . . . . . . . . . . . . . . . . . . . . . . . . Traps Extracted . | . . . . . . . . . . . . . . . . . . . . . . . . Installed . | . . . . . . . . . . . . . . . . . . . . . . . . Triggered . | . . . . . . . . . . . . . . . . . . . . . . . . Most Traps Carried 1 | . . . 1 . . . . . . . . . . . . . . . . . . . . Machines | -11 -10 -10 -10 -8 -8 -6 -6 -6 -5 -5 -5 -5 -4 -4 -4 -4 -4 -3 -3 -3 -2 -2 -1 ---------- Run | Yrd Mat Min Sub Rec Scr Fac Was Fac Fac Upp Upp Zhi Pro Fac Was Fac Ext Res Qua Frg Res Tes Acc Machines Disabled 42 | . 2 . 5 . . . . 2 4 . . . . 5 . 4 3 2 2 8 . 2 3 Max in Single Turn 6 | . 1 . 2 . . . . 1 1 . . . . 1 . 1 1 1 1 6 . 1 2 Garrison Access 3 | . . . . . . . . . 1 . . . . 1 . 1 . . . . . . . Machines Repaired . | . . . . . . . . . . . . . . . . . . . . . . . . Machines Dismantled . | . . . . . . . . . . . . . . . . . . . . . . . . Machines Sabotaged . | . . . . . . . . . . . . . . . . . . . . . . . . Overloaded Fab Kills . | . . . . . . . . . . . . . . . . . . . . . . . . Hacking | -11 -10 -10 -10 -8 -8 -6 -6 -6 -5 -5 -5 -5 -4 -4 -4 -4 -4 -3 -3 -3 -2 -2 -1 --------- Run | Yrd Mat Min Sub Rec Scr Fac Was Fac Fac Upp Upp Zhi Pro Fac Was Fac Ext Res Qua Frg Res Tes Acc Machines Accessed 176 | . 2 1 2 9 1 11 . 18 14 . . 4 . 21 . 20 15 17 8 18 4 9 2 Terminals 87 | . 1 . . 6 . 4 . 8 6 . . . . 8 . 11 13 9 5 9 1 5 1 Fabricators 16 | . . . . . . 3 . 1 2 . . . . 2 . 3 . . . 4 1 . . Repair Stations 11 | . . . . . . 2 . 1 . . . . . 2 . 1 . 1 1 1 . 1 1 Recycling Units 31 | . 1 . . 3 . 1 . 6 5 . . . . 5 . 2 2 2 . 3 1 . . Scanalyzers 15 | . . . . . . . . 2 . . . . . 1 . 2 . 4 1 1 1 3 . Garrison Access 8 | . . . . . . 1 . . 1 . . . . 3 . 1 . 1 1 . . . . Total Hacks 415 | . 3 1 5 29 4 37 . 38 32 . . 17 . 52 . 37 32 32 22 42 6 21 5 Successful 200 | . . 1 5 15 4 13 . 19 19 . . 17 . 25 . 21 14 10 10 19 2 6 . Failed 211 | . 3 . . 13 . 24 . 19 12 . . . . 27 . 15 18 22 11 23 4 15 5 Catastrophic 37 | . . . . 1 . 3 . 2 3 . . . . 5 . 1 1 7 1 7 1 3 2 Database Lockouts 4 | . . . . 1 . . . . 1 . . . . . . 1 . . 1 . . . . Manual 198 | . 2 . . 14 . 20 . 26 22 . . . . 30 . 22 10 12 10 21 2 6 1 Terminals 208 | . 2 . . 23 . 12 . 18 18 . . . . 22 . 16 27 16 14 23 2 12 3 Fabricators 44 | . . . . . . 15 . 3 6 . . . . 6 . 7 . . . 6 1 . . Repair Stations 26 | . . . . . . 6 . 1 . . . . . 7 . 1 . 2 2 3 . 2 2 Recycling Units 54 | . 1 . . 6 . 2 . 9 7 . . . . 9 . 3 5 3 . 8 1 . . Scanalyzers 42 | . . . . . . . . 7 . . . . . 2 . 9 . 9 4 2 2 7 . Garrison Access 14 | . . . . . . 2 . . 1 . . . . 6 . 1 . 2 2 . . . . Terminal Hacks 72 | . . 1 5 7 4 1 . . 6 . . 17 . 5 . 3 10 3 2 7 . 1 . Record 9 | . . . 4 . . . . . . . . 5 . . . . . . . . . . . Part Schematic 7 | . . . . 1 . . . . 2 . . 4 . . . . . . . . . . . Robot Analysis 10 | . . . . 1 4 . . . . . . 4 . . . . . . . 1 . . . Prototype ID Bank 8 | . . . . 2 . . . . 1 . . 4 . 1 . . . . . . . . . Open Door 11 | . . 1 . . . . . . . . . . . . . 1 8 1 . . . . . Branch Access Points 5 | . . . . . . 1 . . 1 . . . . 1 . 1 . 1 . . . . . Terminal Index 4 | . . . . 1 . . . . . . . . . 1 . 1 . . . 1 . . . Unreport Threat 1 | . . . . . . . . . . . . . . . . . . . 1 . . . . Locate Traps 11 | . . . . . . . . . 1 . . . . 2 . . 2 1 . 4 . 1 . Dispatch Records 1 | . . . . 1 . . . . . . . . . . . . . . . . . . . Zone Layout 4 | . . . . 1 . . . . 1 . . . . . . . . . 1 1 . . . Proto ID Catalog 1 | . . . 1 . . . . . . . . . . . . . . . . . . . . Fabricator Hacks 15 | . . . . . . 4 . 1 2 . . . . 2 . 3 . . . 3 . . . Network Status 8 | . . . . . . 2 . 1 2 . . . . 1 . 2 . . . . . . . Load Schematic 1 | . . . . . . . . . . . . . . . . . . . . 1 . . . Build 6 | . . . . . . 2 . . . . . . . 1 . 1 . . . 2 . . . Repair Station Hacks 10 | . . . . . . . . . . . . . . 6 . . . . 2 1 . 1 . Scan Component 6 | . . . . . . . . . . . . . . 3 . . . . 1 1 . 1 . Repair 4 | . . . . . . . . . . . . . . 3 . . . . 1 . . . . Recycling Unit Hacks 8 | . . . . 2 . 1 . 2 1 . . . . . . 1 . . . . 1 . . Retrieve Components 8 | . . . . 2 . 1 . 2 1 . . . . . . 1 . . . . 1 . . Scanalyzer 12 | . . . . . . . . 2 . . . . . . . 4 . 2 2 . 1 1 . Insert Component 2 | . . . . . . . . . . . . . . . . 1 . 1 . . . . . Analyze 2 | . . . . . . . . . . . . . . . . 2 . . . . . . . Retrieve Study 8 | . . . . . . . . 2 . . . . . . . 1 . 1 2 . 1 1 . Garrison Access Hacks 3 | . . . . . . . . . 1 . . . . 1 . 1 . . . . . . . Seal Access 3 | . . . . . . . . . 1 . . . . 1 . 1 . . . . . . . Unauthorized Hacks 80 | . . . . 6 . 7 . 14 9 . . . . 11 . 9 4 5 4 8 . 3 . Terminals 37 | . . . . 3 . 2 . 6 2 . . . . 3 . 3 2 4 4 5 . 3 . Track 2 | . . . . . . . . . . . . . . . . . . . . 1 . 1 . Assimilate 10 | . . . . . . . . 2 2 . . . . . . 2 1 1 . . . 2 . Botnet 20 | . . . . 3 . 2 . 2 . . . . . 2 . 1 1 3 3 3 . . . Operators 4 | . . . . . . . . 1 . . . . . 1 . . . . 1 1 . . . Skim 1 | . . . . . . . . 1 . . . . . . . . . . . . . . . Fabricators 12 | . . . . . . 3 . 1 2 . . . . 2 . 3 . . . 1 . . . Report 1 | . . . . . . 1 . . . . . . . . . . . . . . . . . Prioritize 2 | . . . . . . 1 . . . . . . . . . 1 . . . . . . . Liberate 3 | . . . . . . . . . 2 . . . . . . 1 . . . . . . . Haulers 4 | . . . . . . 1 . 1 . . . . . 1 . 1 . . . . . . . Recompile 2 | . . . . . . . . . . . . . . 1 . . . . . 1 . . . Repair Stations 4 | . . . . . . 1 . 1 . . . . . 1 . 1 . . . . . . . Mechanics 3 | . . . . . . . . 1 . . . . . 1 . 1 . . . . . . . Patch 1 | . . . . . . 1 . . . . . . . . . . . . . . . . . Recycling Units 27 | . . . . 3 . 1 . 6 5 . . . . 5 . 2 2 1 . 2 . . . Mask 1 | . . . . . . . . . . . . . . . . . . . . 1 . . . Tunnel 3 | . . . . 3 . . . . . . . . . . . . . . . . . . . Fedlink 22 | . . . . . . 1 . 6 5 . . . . 5 . 2 2 . . 1 . . . Scrapoids 1 | . . . . . . . . . . . . . . . . . . 1 . . . . . Scanalyzers . | . . . . . . . . . . . . . . . . . . . . . . . . Garrison Access . | . . . . . . . . . . . . . . . . . . . . . . . . Data Cores Recovered 3 | . . . . . . . . 1 . . . . . . . . . 1 . . . 1 . Used 2 | . . . . . . . . . . . . . . . . . . 1 . . . 1 . Hacking Detections 133 | . 2 . . 7 . 10 . 12 9 . . . . 14 . 15 8 16 8 17 4 9 2 Full Trace Events 14 | . . . . . . 1 . 1 . . . . . . . . . 3 . 4 1 2 2 Feedback Events 3 | . . . . . . 1 . 1 . . . . . . . . . . . 1 . . . Corruption 3 | . . . . . . 1 . 1 . . . . . . . . . . . 1 . . . Feedback Blocked . | . . . . . . . . . . . . . . . . . . . . . . . . Robot Schematics Acquired . | . . . . . . . . . . . . . . . . . . . . . . . . Robots Built 2 | . . . . . . . . . . . . . . 2 . . . . . . . . . Authchips . | . . . . . . . . . . . . . . . . . . . . . . . . Time 169 | . . . . . . . . . . . . . . 169 . . . . . . . . . Total Robot Build Rating 12 | . . . . . . . . . . . . . . 12 . . . . . . . . . Part Schematics Acquired 8 | . . . . 1 . . . . 2 . . 4 . . . 1 . . . . . . . Parts Built 7 | . . . . . . 4 . . . . . . . . . 2 . . . 1 . . . Authchips 1 | . . . . . . . . . . . . . . . . . . . . 1 . . . Time 432 | . . . . . . 223 . . . . . . . . . 117 . . . 92 . . . Total Part Build Rating 45 | . . . . . . 26 . . . . . . . . . 14 . . . 5 . . . Part Studies Acquired 8 | . . . . . . . . 2 . . . . . . . 1 . 1 2 . 1 1 . Parts Repaired 4 | . . . . . . . . . . . . . . 3 . . . . 1 . . . . Time 127 | . . . . . . . . . . . . . . 107 . . . . 20 . . . . Parts Recycled . | . . . . . . . . . . . . . . . . . . . . . . . . Recycled Matter . | . . . . . . . . . . . . . . . . . . . . . . . . Retrieved Matter . | . . . . . . . . . . . . . . . . . . . . . . . . Retrieved Components 13 | . . . . 6 . 2 . 2 1 . . . . . . 1 . . . . 1 . . Parts Scanalyzed 1 | . . . . . . . . . . . . . . . . 1 . . . . . . . Part Schematics Acquired 1 | . . . . . . . . . . . . . . . . 1 . . . . . . . Parts Damaged . | . . . . . . . . . . . . . . . . . . . . . . . . Bothacking | -11 -10 -10 -10 -8 -8 -6 -6 -6 -5 -5 -5 -5 -4 -4 -4 -4 -4 -3 -3 -3 -2 -2 -1 ------------ Run | Yrd Mat Min Sub Rec Scr Fac Was Fac Fac Upp Upp Zhi Pro Fac Was Fac Ext Res Qua Frg Res Tes Acc Used RIF Installer . | . . . . . . . . . . . . . . . . . . . . . . . . Robots Hacked . | . . . . . . . . . . . . . . . . . . . . . . . . Non-combat . | . . . . . . . . . . . . . . . . . . . . . . . . Combat . | . . . . . . . . . . . . . . . . . . . . . . . . Robot Hacks Applied . | . . . . . . . . . . . . . . . . . . . . . . . . Relay Couplers Released . | . . . . . . . . . . . . . . . . . . . . . . . . Fabnet Peak Effective % . | . . . . . . . . . . . . . . . . . . . . . . . . Robots Rewired 8 | . . . . . . . . . . . . . . 2 . . 6 . . . . . . Allies Hacked 1 | . . . . . . . . . . . . . . 1 . . . . . . . . . Hacks Repelled . | . . . . . . . . . . . . . . . . . . . . . . . . Allies | -11 -10 -10 -10 -8 -8 -6 -6 -6 -5 -5 -5 -5 -4 -4 -4 -4 -4 -3 -3 -3 -2 -2 -1 -------- Run | Yrd Mat Min Sub Rec Scr Fac Was Fac Fac Upp Upp Zhi Pro Fac Was Fac Ext Res Qua Frg Res Tes Acc Total Allies 56 | . . 1 . . 1 . 20 1 2 . . . . 4 . 4 15 6 . . . 2 . Largest Group 20 | . . 1 . . 1 1 20 20 2 . . . . 2 . 2 6 5 . . . 1 . Highest-Rated Group 760 | . . 31 . . 59 59 760 760 82 . . . . 98 . 112 343 320 . . . 10 . Highest-Rated Ally 159 | . . 31 . . 59 59 46 46 41 . . . . 56 . 56 159 64 . . . 10 . Initial UFD Resources 104 | . . . . . . 23 33 33 50 70 70 70 73 73 93 93 97 104 101 101 . . . Total Orders 3 | . . . . . . 2 . . 1 . . . . . . . . . . . . . . STAY 2 | . . . . . . 1 . . 1 . . . . . . . . . . . . . . FOLLOW 1 | . . . . . . 1 . . . . . . . . . . . . . . . . . Ally Attacks 470 | . . 11 . . . 18 . 172 35 . . . . 13 . 6 115 100 . . . . . Total Damage 12473 | . . 150 . . . 478 . 3552 1869 . . . . 316 . 449 3335 2324 . . . . . Kills 77 | . . 1 . . . 3 . 26 13 . . . . . . 1 14 19 . . . . . Allies Corrupted 5 | . . . . . . . . 2 . . . . . 1 . 1 1 . . . . . . Allies Melted 2 | . . . . . . . . . . . . . . . . . . . . 2 . . . Intel | -11 -10 -10 -10 -8 -8 -6 -6 -6 -5 -5 -5 -5 -4 -4 -4 -4 -4 -3 -3 -3 -2 -2 -1 ------- Run | Yrd Mat Min Sub Rec Scr Fac Was Fac Fac Upp Upp Zhi Pro Fac Was Fac Ext Res Qua Frg Res Tes Acc Active Infowar (turns) 15847 | . . 772 2675 . 170 773 248 450 708 702 452 102 341 1004 40 1058 1112 1167 336 3144 285 180 128 Optics 10717 | . . . . . . 486 . . 180 702 452 102 341 1004 40 1058 1112 1167 336 3144 285 180 128 Sensors 9504 | . . . 639 . 170 773 248 450 708 702 452 102 341 1004 40 1031 893 730 296 681 . 116 128 A.S.S. 2579 | . . . . . . . . . . . . . . . . . . . . 2377 202 . . Terrain 1316 | . . . . . . 3 . . . . . . . . . . . 537 275 501 . . . Seismic 2808 | . . 772 2036 . . . . . . . . . . . . . . . . . . . . Machine Analysis 92 | . . . . . . . . . . . . . . . . . . 92 . . . . . Cloaking 1680 | . . . . . . . . . . . . . . . . . . . . 1327 285 68 . Jamming 2557 | . . . . . . . . . . . . . . 444 . 19 405 598 177 557 49 180 128 ECM 69 | . . . . . . . . . . . . . . 69 . . . . . . . . . Robot Analysis Total 10 | . . . . 1 4 . . . . . . 4 . . . . . . . 1 . . . Derelict Logs Recovered 13 | . . 3 2 . 3 . . . . 2 2 . 1 . . . . . . . . . . Drone Launches . | . . . . . . . . . . . . . . . . . . . . . . . . Drone Recoveries . | . . . . . . . . . . . . . . . . . . . . . . . . Exploration | -11 -10 -10 -10 -8 -8 -6 -6 -6 -5 -5 -5 -5 -4 -4 -4 -4 -4 -3 -3 -3 -2 -2 -1 ------------- Run | Yrd Mat Min Sub Rec Scr Fac Was Fac Fac Upp Upp Zhi Pro Fac Was Fac Ext Res Qua Frg Res Tes Acc Turns Passed 21626 | 36 117 835 3004 555 4819 803 248 450 708 702 452 102 341 1004 40 1058 1112 1167 336 3144 285 180 128 Spaces Moved 27939 | 37 180 474 1464 495 3330 1085 341 1160 1481 1441 754 182 584 2004 100 1717 1760 2203 819 5038 530 434 326 Core 319 | 37 180 102 . . . . . . . . . . . . . . . . . . . . . Treads 556 | . . 372 184 . . . . . . . . . . . . . . . . . . . . Legs . | . . . . . . . . . . . . . . . . . . . . . . . . Wheels 5105 | . . . 1280 495 3330 . . . . . . . . . . . . . . . . . . Hover . | . . . . . . . . . . . . . . . . . . . . . . . . Flight 21959 | . . . . . . 1085 341 1160 1481 1441 754 182 584 2004 100 1717 1760 2203 819 5038 530 434 326 Fastest Speed 17 | 50 50 50 95 95 80 29 28 30 26 30 30 30 32 29 29 29 31 17 21 21 24 19 23 Average Speed 50 | 50 50 136 117 100 140 36 29 30 29 30 30 30 32 31 33 30 31 27 26 28 28 23 27 Slowest Speed 280 | 50 50 160 260 120 230 280 30 30 32 32 30 32 32 111 97 31 31 37 30 30 30 28 29 Overloaded Moves 313 | . . . . . . . . . . . . . . . . . . 41 10 111 62 89 . Propulsion Burnouts . | . . . . . . . . . . . . . . . . . . . . . . . . Robots Hopped 130 | . . . . . 1 5 . 5 6 . . . 1 6 . 1 21 35 2 26 14 7 . Potential Cave-ins 46 | . . . . . . . . . . . . . . . . . . . . 46 . . . Cave-ins Triggered 2 | . . . . . . . . . . . . . . . . . . . . 2 . . . Exploration Rate (%) 57 | 3 42 82 67 91 88 24 89 33 44 92 80 61 78 46 79 40 84 44 60 59 16 61 14 Regions Visited 23 Branch Regions 12 Pre-discovered Areas 12 | . . . 3 3 1 . . 1 . . 1 3 . . . . . . . . . . . Known Exits Taken 12 | . . . . . . . . 1 1 1 1 1 1 . . 1 1 1 1 1 . 1 . Unknown Exits Taken 7 | 1 1 1 1 1 1 . . . . . . . . . . . . . . . 1 . . Scrap Searched 28 | . . 1 9 . 10 . . . . 5 2 . 1 . . . . . . . . . . Spaces Dug 337 | . . . 2 . . 27 . 10 28 16 6 . 5 48 . 44 10 38 15 58 14 12 4 Terrain Destroyed 1095 | . 10 . 54 . . 44 . 10 33 63 69 . 98 49 . 61 123 223 17 203 16 15 7 Melee 293 | . . . . . . 27 . 9 26 2 3 . 3 42 . 43 9 36 15 48 14 12 4 Projectile 115 | . . . 4 . . . . 1 7 23 5 . 3 7 . 18 3 8 2 26 2 3 3 AOE 687 | . 10 . 50 . . 17 . . . 38 61 . 92 . . . 111 179 . 129 . . . Terrain Rammed . | . . . . . . . . . . . . . . . . . . . . . . . . Walls Destroyed . | . . . . . . . . . . . . . . . . . . . . . . . . Machines Disabled . | . . . . . . . . . . . . . . . . . . . . . . . . Actions | -11 -10 -10 -10 -8 -8 -6 -6 -6 -5 -5 -5 -5 -4 -4 -4 -4 -4 -3 -3 -3 -2 -2 -1 --------- Run | Yrd Mat Min Sub Rec Scr Fac Was Fac Fac Upp Upp Zhi Pro Fac Was Fac Ext Res Qua Frg Res Tes Acc Total 34037 | 46 197 641 2629 552 3498 1449 484 1229 1668 1676 955 208 721 2283 104 2118 2178 2509 902 6533 631 477 349 Wait 4310 | . . 144 1019 46 . 258 125 37 97 170 185 . 129 107 . 309 318 91 33 1165 77 . . Move 27686 | 36 179 473 1463 494 3327 1075 340 1149 1468 1440 753 181 581 1993 99 1714 1722 2138 814 4992 509 421 325 Hop 99 | . . . . . 1 5 . 5 6 . . . 1 5 . 1 16 29 2 17 6 5 . Pick Up 259 | 3 5 8 11 3 77 12 2 5 8 5 . 2 . 19 . 6 3 30 7 35 8 7 3 Fast Attach 117 | 4 . 1 4 2 12 12 5 . 10 5 . 5 . 12 . 1 1 13 2 20 5 3 . Attach 83 | . . 2 3 1 2 12 1 1 3 3 . 1 . 9 . 1 1 17 5 12 2 4 3 Detach 49 | . . . 1 . 6 10 3 . . 2 . . . 3 . . 1 3 2 11 4 3 . Swap 212 | . 2 . 28 2 3 3 2 7 5 11 2 2 1 13 4 7 20 37 8 43 . 9 3 Drop 288 | . 4 1 17 4 70 16 4 6 15 11 . 6 . 23 1 7 5 29 7 49 3 6 4 Fire 283 | 3 7 12 83 . . 1 . 1 12 26 7 . 6 7 . 18 12 23 2 54 2 3 4 Melee 483 | . . . . . . 30 2 18 44 2 8 11 3 52 . 54 49 84 20 68 15 16 7 Ram . | . . . . . . . . . . . . . . . . . . . . . . . . Kick . | . . . . . . . . . . . . . . . . . . . . . . . . Crush . | . . . . . . . . . . . . . . . . . . . . . . . . Escape Stasis 70 | . . . . . . 15 . . . . . . . 28 . . . 15 . 12 . . . Rewire 42 | . . . . . . . . . . . . . . 12 . . 30 . . . . . . Trap . | . . . . . . . . . . . . . . . . . . . . . . . . Miscellaneous 56 | . . . . . . . . . . 1 . . . . . . . . . 55 . . . Route ------- -11/Scrapyard -10/Materials -10/Mines (discovered 2 exits: [*Mat] / *Sub) -10/Subcaves (discovered 2 exits: [*Mat] / *Rec) -8/Recycling (discovered 2 exits: *Fac / *Scr) -8/Scraptown (discovered 2 exits: *Fac x2) -6/Factory (discovered 2 exits: Low x2) -6/Waste -6/Factory -5/Factory (discovered 2 exits: *Upp x2) -5/Upper Caves -5/Upper Caves (discovered 2 exits: *Fac / *Zhi) -5/Zhirov -4/Proximity Caves -4/Factory (discovered 7 exits: *Res x2 / *Upp x2 / Ext x2 / Arm) -4/Waste -4/Factory (discovered 6 exits: *Res / Upp x2 / *Ext x2 / Arm) -4/Extension (discovered 2 exits: *Res / *Cet) -3/Research (discovered 2 exits: *Qua x2) -3/Quarantine (discovered 3 exits: Res / *Sec / *Frg) -3/Protoforge -2/Research -2/Testing -1/Access To Epsilon Eridani History --------- Turn | Location | Event 18 | -11/Scrapyard | Discovered new exit (range 15) 37 | -11/Scrapyard | Entered Materials 74 | -10/Materials | Discovered new exit (range 11) 154 | -10/Materials | Entered Mines 193 | -10/Mines | Found a damaged Exp. Sensor Array with a note attached 194 | -10/Mines | Found Prototype Device 242 | -10/Mines | Received a Mining Laser from a helpful Derelict 314 | -10/Mines | Build established: Mutant 325 | -10/Mines | Learned Materials trap positions 478 | -10/Mines | Discovered new exit (range 4) 551 | -10/Mines | Learned 2 Materials zone layouts 617 | -10/Mines | Met a Derelict who couldn't figure out how to use a Trap Extractor 782 | -10/Mines | Learned 2 Materials zone layouts 981 | -10/Mines | Discovered new exit (range 6) 989 | -10/Mines | Entered Subcaves 990 | -10/Subcaves | Approached by a straggling Scientist 1074 | -10/Subcaves | Lost 3 parts (1p2w) 1076 | -10/Subcaves | Identified Exp. Sensor Array 1673 | -10/Subcaves | Build established: Scavenger-Mutant 1911 | -10/Subcaves | Shifting Twisted Machinery released Mak. Light Armor Plating 1925 | -10/Subcaves | Shifting Twisted Machinery released Sub. Beam Cannon 2017 | -10/Subcaves | Learned location of Zion (-6) 2017 | -10/Subcaves | Met a Zionite searching for "candidates" 2288 | -10/Subcaves | Shifting Twisted Machinery released Spk. Treads 3221 | -10/Subcaves | Visited 4L-MR0's lab 3235 | -10/Subcaves | Found Flightbrick 3410 | -10/Subcaves | Discovered new exit (range 9) 3493 | -10/Subcaves | Visited Clippyterm 3496 | -10/Subcaves | Learned Research machine intel 3744 | -10/Subcaves | A swath of the cavern ceiling suddenly collapsed 3916 | -10/Subcaves | Discovered new exit (range 14) 3993 | -10/Subcaves | Entered Recycling 4273 | -8/Recycling | Build established: Mutant 4387 | -8/Recycling | Discovered new exit (range 14) 4522 | -8/Recycling | Scanned before Scraplab entrance 4538 | -8/Recycling | Entered Scraplab 4547 | -8/Recycling | Discovered new exit (range 2) 4548 | -8/Recycling | Entered Scraptown 4636 | -8/Scraptown | Heard Great Nut preacher, LISTEN AND RECITE! 4691 | -8/Scraptown | Scanned Subdweller tech in exchange for log data 4694 | -8/Scraptown | Learned location of 2 exits from Lower Caves 4695 | -8/Scraptown | Learned Factory terminal intel 4708 | -8/Scraptown | Discovered new exit (range 11) 4856 | -8/Scraptown | Visited UFD Registry 4856 | -8/Scraptown | Registered with UFD as "Alphacore" 4877 | -8/Scraptown | Visited CR-KLE's Repair Center 4891 | -8/Scraptown | Visited Bundlers 4963 | -8/Scraptown | Visited Red Mages 4986 | -8/Scraptown | Visited Comm Corps 5019 | -8/Scraptown | Visited The Evicted 5201 | -8/Scraptown | Visited Chapter 10 5229 | -8/Scraptown | Visited Botcube Research 5245 | -8/Scraptown | Visited Derelict Rescue Squad 5280 | -8/Scraptown | Delivered Scrap Shield to a Scientist 5473 | -8/Scraptown | Found DRS Beacon 5606 | -8/Scraptown | Build established: Hauler-Mutant 6735 | -8/Scraptown | Visited DA-N13 Charitable Foundation 6758 | -8/Scraptown | Found DCF Scrap (27 items) 6810 | -8/Scraptown | Visited Scrapoid Research Area 6857 | -8/Scraptown | Visited Infowarlord's Domain 6892 | -8/Scraptown | Visited Scrap Suit Storage 6934 | -8/Scraptown | Visited Research Penetration Think Tank 6980 | -8/Scraptown | Visited LU-1G1's Boring Crew 7251 | -8/Scraptown | Found Exp. Terrain Scan Processor 7450 | -8/Scraptown | Build established: Mutant 7548 | -8/Scraptown | Found Botcube 7648 | -8/Scraptown | Found Scrap Suit 8664 | -8/Scraptown | CR-KLE repaired 4 parts 9167 | -8/Scraptown | Botcube activated 9266 | -8/Scraptown | Build established: Derelict-Mutant 9269 | -8/Scraptown | Met Optimus 9269 | -8/Scraptown | Accepted into 0bPrime 9315 | -8/Scraptown | Visited Analyses Database 9364 | -8/Scraptown | Discovered new exit (range 3) 9367 | -8/Scraptown | Entered Factory 9367 | -6/Factory | Accompanied by 1 ally 9367 | -6/Factory | Evolved 8 slots: Propulsion x3, Utility x5 9368 | -6/Factory | Loaded intel: 26 terminal locations 9373 | -6/Factory | Attached Flightbrick, gained temporary slots: Utility x3 9490 | -6/Factory | Loaded intel: 8 recycling unit locations 9703 | -6/Factory | Garrison activated, responded to threat 9720 | -6/Factory | Spotted B-75 Beast 9724 | -6/Factory | Build established: Scout 9726 | -6/Factory | Found Prototype Launcher 9726 | -6/Factory | Identified Rocket Array 9750 | -6/Factory | Identified exit to Lower Caves 9838 | -6/Factory | Fabricated Jamming Amplifier? 9953 | -6/Factory | Fabricated Q-thruster (x2) 10170 | -6/Factory | Sucked down chute 10170 | -6/Factory | Entered Waste 10171 | -6/Waste | Joined by Warlord forces that had cleared the area 10186 | -6/Waste | Discovered new exit (range 16) 10235 | -6/Waste | Found Prototype Launcher 10235 | -6/Waste | Identified Tesla Bomb Launcher 10384 | -6/Waste | Identified exit to Factory 10418 | -6/Waste | Entered Factory 10418 | -6/Factory | Accompanied by 20 allies 10476 | -6/Factory | Build established: Sprinter 10478 | -6/Factory | Loaded intel: 8 recycling unit locations 10478 | -6/Factory | Learned location of Protoforge (-3) 10817 | -6/Factory | Discovered new exit (range 13) 10823 | -6/Factory | Identified exit to Factory 10868 | -6/Factory | Entered another Factory area 10868 | -5/Factory | Accompanied by 2 allies 10868 | -5/Factory | Evolved 2 slots: Power x1, Propulsion x1 11034 | -5/Factory | Loaded intel: 8 recycling unit locations 11239 | -5/Factory | Noticed UFD Elites at a Recycling Unit 11335 | -5/Factory | Lost 3 allies 11461 | -5/Factory | Discovered new exit (range 21) 11519 | -5/Factory | Identified exit to Upper Caves 11559 | -5/Factory | Central database locked down 11576 | -5/Factory | Entered Upper Caves 11578 | -5/Upper Caves | UFD Scientist delivered a prototype 11580 | -5/Upper Caves | Found Prototype Protection 11580 | -5/Upper Caves | Identified Enh. Scrap Shield 11587 | -5/Upper Caves | Activated DRS Beacon 11690 | -5/Upper Caves | Build established: Scout 11767 | -5/Upper Caves | Attracted the attention of an 0b10 checkpoint 11799 | -5/Upper Caves | Spotted B-75 Beast 12066 | -5/Upper Caves | Destroyed B-75 Beast 12093 | -5/Upper Caves | Discovered new exit (range 15) 12094 | -5/Upper Caves | Encountered a Warlord checkpoint 12097 | -5/Upper Caves | Identified exit to Upper Caves 12218 | -5/Upper Caves | Learned location of 1 exit from Factory 12278 | -5/Upper Caves | Entered another Upper Caves area 12279 | -5/Upper Caves | Encountered a Warlord checkpoint 12298 | -5/Upper Caves | Discovered new exit (range 14) 12708 | -5/Upper Caves | Spotted B-75 Beast 12717 | -5/Upper Caves | Identified exit to Zhirov 12730 | -5/Upper Caves | Entered Zhirov 12730 | -5/Zhirov | Discovered new exit (range 3) 12736 | -5/Zhirov | Met Zhirov 12743 | -5/Zhirov | Learned location of Quarantine (-3) 12743 | -5/Zhirov | Learned location of Testing (-2) 12743 | -5/Zhirov | Learned location of Command (-1) 12744 | -5/Zhirov | Zhirov requested help retrieving the SGEMP Prototype 12750 | -5/Zhirov | Found Alien Artifact 12750 | -5/Zhirov | Identified Integrated Dissipator 12750 | -5/Zhirov | Installed Integrated Dissipator, increased core heat dissipation (+20) 12818 | -5/Zhirov | Found Alien Artifact 12831 | -5/Zhirov | Identified exit to Proximity Caves 12832 | -5/Zhirov | Entered Proximity Caves 12835 | -4/Proximity Caves | Spotter reported a threat 13172 | -4/Proximity Caves | Discovered new exit (range 5) 13172 | -4/Proximity Caves | Identified exit to Factory 13173 | -4/Proximity Caves | Entered Factory 13173 | -4/Factory | Evolved 2 slots: Propulsion x1, Utility x1 13174 | -4/Factory | Identified exit to Armory 13175 | -4/Factory | Identified exit to Upper Caves 13525 | -4/Factory | Repaired Imp. Light Armor Plating 13601 | -4/Factory | Discovered exit to Upper Caves (range 22) 13625 | -4/Factory | Loaded intel: 8 recycling unit locations 13766 | -4/Factory | Discovered new exit (range 4) 13767 | -4/Factory | Identified exit to Research 13813 | -4/Factory | Fabricated Y-64 Sentinel? 13828 | -4/Factory | Discovered exit to Research (range 22) 13863 | -4/Factory | Identified exit to Extension 13877 | -4/Factory | Repaired Lyr. Medium Armor Plating? 13893 | -4/Factory | Build established: Ninja 13932 | -4/Factory | Repaired Imp. Propulsion Shielding 14085 | -4/Factory | Watched by a mysterious "MATRIX" hacker. 14177 | -4/Factory | Manually triggered Chute Trap 14177 | -4/Factory | Sucked down chute 14177 | -4/Factory | Entered Waste 14177 | -4/Waste | The area was eerily silent 14214 | -4/Waste | Discovered new exit (range 10) 14217 | -4/Waste | Identified exit to Factory 14217 | -4/Waste | Entered Factory 14288 | -4/Factory | Central database locked down 14402 | -4/Factory | Build established: Scout 14926 | -4/Factory | Spotted B-86 Titan 15040 | -4/Factory | Loaded intel: 8 recycling unit locations 15116 | -4/Factory | Discovered exit to Research (range 18) 15150 | -4/Factory | Fabricated Imp. Cloaking Device? 15275 | -4/Factory | Entered Extension 15307 | -4/Extension | Spotted B-86 Titan 15409 | -4/Extension | Rescued a captive Derelict 15447 | -4/Extension | Rescued A7 15463 | -4/Extension | Rescued a captive Derelict 15469 | -4/Extension | Rescued a captive Derelict 15888 | -4/Extension | Rescued a captive Derelict 15890 | -4/Extension | Rescued a captive Derelict 16054 | -4/Extension | Spotted B-86 Titan 16086 | -4/Extension | Allies destroyed B-86 Titan 16104 | -4/Extension | Extracted ID and sensor layout for unrecognized location from A7's data core 16132 | -4/Extension | Lost 5 allies 16133 | -4/Extension | Loaded intel: 2 recycling unit locations 16155 | -4/Extension | Rescued a captive Derelict 16207 | -4/Extension | Rescued a captive Derelict 16242 | -4/Extension | Rescued a captive Derelict 16248 | -4/Extension | Rescued a captive Derelict 16350 | -4/Extension | Discovered exit to Research (range 10) 16351 | -4/Extension | Discovered new exit (range 6) 16375 | -4/Extension | Identified exit to Cetus 16387 | -4/Extension | Entered Research 16387 | -3/Research | Accompanied by 4 allies 16387 | -3/Research | Evolved 2 slots: Propulsion x1, Utility x1 16388 | -3/Research | Loaded intel: 110 machine locations 16936 | -3/Research | Spotted B-86 Titan 17045 | -3/Research | Lost 4 parts (1n2u1w) 17260 | -3/Research | Destroyed 10 combat bots 17286 | -3/Research | Lost 4 parts (1p1n2w) 17300 | -3/Research | Scrapoids reinforcements arrived? 17365 | -3/Research | Identified exit to Quarantine 17387 | -3/Research | First assault squad dispatched 17554 | -3/Research | Entered Quarantine 17566 | -3/Quarantine | Lost 3 parts (1p2n) 17661 | -3/Quarantine | Central database locked down 17718 | -3/Quarantine | Repaired Adv. Transmission Jammer? 17735 | -3/Quarantine | Discovered new exit (range 17) 17778 | -3/Quarantine | Found Alien Artifact 17796 | -3/Quarantine | Identified Subatomic Replicator 17796 | -3/Quarantine | Used Subatomic Replicator to create Alien Artifact 17815 | -3/Quarantine | Unchained authorized (6S-H0T) 17831 | -3/Quarantine | Found Alien Artifact 17864 | -3/Quarantine | Spotted Fortress 17884 | -3/Quarantine | Discovered new exit (range 6) 17884 | -3/Quarantine | Discovered new exit (range 6) 17885 | -3/Quarantine | Identified exit to Protoforge 17889 | -3/Quarantine | Identified exit to Section 7 17890 | -3/Quarantine | Entered Protoforge 18117 | -3/Protoforge | Spotted Hotshot 18184 | -3/Protoforge | Build established: Ninja 18384 | -3/Protoforge | Spotted Hotshot 18386 | -3/Protoforge | Spotted Hotshot 18391 | -3/Protoforge | Spotted Hotshot 18391 | -3/Protoforge | Spotted Hotshot 18449 | -3/Protoforge | Spotted AP7-3 18450 | -3/Protoforge | Spotted AP7-3 18450 | -3/Protoforge | Superfortress began startup sequence 18452 | -3/Protoforge | Spotted EXE-6 18452 | -3/Protoforge | Spotted EXE-6 18453 | -3/Protoforge | Spotted SKR-2 18454 | -3/Protoforge | Spotted SKR-2 18455 | -3/Protoforge | Spotted SKR-2 18465 | -3/Protoforge | UFD initiated attack on Protoforge (Readiness: High) 18465 | -3/Protoforge | Loaded intel: 3 recycling unit locations 18468 | -3/Protoforge | Spotted EXE-6 18468 | -3/Protoforge | Spotted EXE-6 18468 | -3/Protoforge | Identified Dimensional Node Initializer 18468 | -3/Protoforge | Initialized slip node 18471 | -3/Protoforge | Core integrity fell below 50% 18495 | -3/Protoforge | Found Prototype Processor 18495 | -3/Protoforge | Identified Exp. Melee Analysis Suite 18501 | -3/Protoforge | Lost 3 parts (1p1n1u) 18502 | -3/Protoforge | Optimus greeted in Protoforge 18505 | -3/Protoforge | Found Exp. Melee Analysis Suite 18512 | -3/Protoforge | Found Exp. Melee Analysis Suite 18527 | -3/Protoforge | Found Prototype Processor 18527 | -3/Protoforge | Identified Exp. Core Analyzer 18531 | -3/Protoforge | Found Prototype Ballistic Gun 18555 | -3/Protoforge | Lost 3 allies 18598 | -3/Protoforge | Fabricated Cld. Cesium-ion Thruster (x1) 18607 | -3/Protoforge | Met 7R-MNS 18631 | -3/Protoforge | Identified Cep. XC Strikerail 18637 | -3/Protoforge | Spotted Overlord 18651 | -3/Protoforge | Found Prototype Device 18651 | -3/Protoforge | Identified Exp. Active Sensor Suite 18683 | -3/Protoforge | Lost 6 allies 18697 | -3/Protoforge | UFD reported confirmed Drillbomb installation 18806 | -3/Protoforge | Build established: Scavenger-Scout 18819 | -3/Protoforge | Spotted Executioner 18859 | -3/Protoforge | Lost 3 allies 18871 | -3/Protoforge | Spotted Striker 18917 | -3/Protoforge | Spotted Executioner 18935 | -3/Protoforge | Spotted Hotshot 18943 | -3/Protoforge | Spotted SKR-2 18948 | -3/Protoforge | Spotted Hotshot 18948 | -3/Protoforge | Spotted Hotshot 18982 | -3/Protoforge | Spotted Executioner 19001 | -3/Protoforge | Destroyed Hotshot 19013 | -3/Protoforge | Spotted Executioner 19013 | -3/Protoforge | Spotted Striker 19101 | -3/Protoforge | Spotted Striker 19102 | -3/Protoforge | Spotted Striker 19163 | -3/Protoforge | Spotted Striker 19163 | -3/Protoforge | Spotted Striker 19164 | -3/Protoforge | P-80 Master assimilated allied 03F62-D 19195 | -3/Protoforge | Found UFD Drillbomb 19218 | -3/Protoforge | Installed UFD Drillbomb at designated target 19218 | -3/Protoforge | UFD reported confirmed Drillbomb installation 19232 | -3/Protoforge | Found UFD Drillbomb 19258 | -3/Protoforge | Installed UFD Drillbomb at designated target 19258 | -3/Protoforge | UFD reported confirmed Drillbomb installation 19279 | -3/Protoforge | Found UFD Drillbomb 19317 | -3/Protoforge | Lost 3 allies 19331 | -3/Protoforge | Installed UFD Drillbomb at designated target 19331 | -3/Protoforge | UFD reported confirmed Drillbomb installation 19402 | -3/Protoforge | Spotted Decapitator 19455 | -3/Protoforge | Found UFD Drillbomb 19458 | -3/Protoforge | Spotted Executioner 19460 | -3/Protoforge | Crushed by falling debris 19463 | -3/Protoforge | Spotted Striker 19464 | -3/Protoforge | Spotted Immortal 19464 | -3/Protoforge | Spotted Immortal 19467 | -3/Protoforge | Found Prototype Processor 19467 | -3/Protoforge | Identified Exp. Targeting Computer 19548 | -3/Protoforge | Spotted Executioner 19571 | -3/Protoforge | Spotted Executioner 19582 | -3/Protoforge | Spotted Immortal 19607 | -3/Protoforge | Spotted Executioner 19615 | -3/Protoforge | Lost 6 allies 19637 | -3/Protoforge | Spotted Decapitator 19643 | -3/Protoforge | Spotted Striker 19643 | -3/Protoforge | Spotted Striker 19666 | -3/Protoforge | Spotted Immortal 19671 | -3/Protoforge | Crushed by falling debris 19680 | -3/Protoforge | Found Prototype Piercing Weapon 19680 | -3/Protoforge | Identified Exp. Jetlance 19682 | -3/Protoforge | Found Prototype Device 19682 | -3/Protoforge | Identified Exp. Cloaking Device 19687 | -3/Protoforge | Found Exp. Jetlance 19693 | -3/Protoforge | Found Exp. Cloaking Device 19695 | -3/Protoforge | Found Prototype Device 19696 | -3/Protoforge | Identified Cep. Antimissile System 19711 | -3/Protoforge | Spotted Executioner 19711 | -3/Protoforge | Found UFD Drillbomb 19717 | -3/Protoforge | Spotted Striker 19722 | -3/Protoforge | Lost 3 allies 19795 | -3/Protoforge | UFD reported confirmed Drillbomb installation 19852 | -3/Protoforge | Spotted 03F27-K 19880 | -3/Protoforge | Spotted 03F31-K 19901 | -3/Protoforge | Spotted Executioner 19917 | -3/Protoforge | Found UFD Drillbomb 19918 | -3/Protoforge | Spotted Executioner 19919 | -3/Protoforge | Spotted Executioner 19929 | -3/Protoforge | Lost 11 allies 19937 | -3/Protoforge | Build established: Scavenger-Ninja 19939 | -3/Protoforge | Spotted Striker 19940 | -3/Protoforge | Spotted Striker 19941 | -3/Protoforge | Spotted Striker 19957 | -3/Protoforge | Installed UFD Drillbomb at designated target 19957 | -3/Protoforge | UFD reported confirmed Drillbomb installation 19964 | -3/Protoforge | Found UFD Drillbomb 19992 | -3/Protoforge | Installed UFD Drillbomb at designated target 19992 | -3/Protoforge | UFD reported confirmed Drillbomb installation 20074 | -3/Protoforge | Found UFD Drillbomb 20552 | -3/Protoforge | Spotted Decapitator 20939 | -3/Protoforge | UFD reported confirmed Drillbomb installation 21027 | -3/Protoforge | Spotted Striker 21032 | -3/Protoforge | Discovered new exit (range 5) 21034 | -3/Protoforge | Identified exit to Research 21034 | -3/Protoforge | Spotted Executioner 21034 | -3/Protoforge | Entered Research 21034 | -2/Research | Evolved 2 slots: Propulsion x1, Utility x1 21162 | -2/Research | Spotted B-90 Cyclops 21251 | -2/Research | Spotted B-90 Cyclops 21257 | -2/Research | Targeted by mysterious "MATRIX" hacker. 21308 | -2/Research | Discovered new exit (range 22) 21319 | -2/Research | Entered Testing 21369 | -2/Testing | Spotted Striker 21415 | -2/Testing | Spotted PY-QHQSZQX07N 21419 | -2/Testing | Found Exp. Terrain Scan Processor 21427 | -2/Testing | Spotted Striker 21427 | -2/Testing | Spotted Striker 21453 | -2/Testing | Found Exp. Core Analyzer 21484 | -2/Testing | Discovered new exit (range 19) 21499 | -2/Testing | Identified exit to Access 21499 | -2/Testing | Entered Access 21499 | -1/Access | Evolved 2 slots: Utility x2 21560 | -1/Access | Spotted B-99 Colossus 21611 | -1/Access | Spotted Executioner 21611 | -1/Access | Spotted Executioner 21624 | -1/Access | Discovered new exit (range 4) 21626 | -1/Access | Identified exit to Surface 21627 | *** | Escaped! Last Messages --------------- 21589_ K-01 Serf collects debris. 21600_ ALERT: Potential suspicious activity detected, Programmers report to Access Zone 9I. 21607_ Connecting with Terminal... 21607_ ALERT: Suspicious activity at Terminal A001. Dispatching Investigation squad. 21611_ C-30 ARC bursts open, deploying its payload. 21611_ Executioner unfolds itself. 21611_ Slug penetrates Wall. 21615_ Dropped Lgt. Quantum Reactor. 21619_ Chain reaction triggered in Corrupted Lgt. Quantum Reactor. 21619_ Sealed Barrier breached. 21619_ Terminal disabled. 21624_ Main Access Shell breached. 21624_ EXIT=FOUND 21626_ EXIT=IDENTIFIED: SURFACE 21627_ ALERT: Security rotation in progress. Map ----- +----------------------------------------------------+ | ??????????/"%????????????????????????????????????? | | ??????????# "#???????????????????????????????????? | | ??????????# #???????????????????????????????????? | | ??????????# #???????????????????????????????????? | | ??????????# #???????????????????????????????????? | | ??????????# #???????????????????????????????????? | | ??????????# #???????????????????????????????????? | | ??????????+ +???????????????????????????????????? | | ??????????# #???????????????????????????????????? | | ??????????# #???????????????????????????????????? | | ??????????# #???????????????????????????????????? | | ??????????# #???????????????????????????????????? | | ??????????# #???????????????????????????????????? | | ??????????# #???????????????????????????????????? | | ??????????# #???????????????????????????????????? | | ??????????# #???????????????????????????????????? | | ??????????# #???????????????????????????????????? | | ??????????# #???????????????????????????????????? | | ??????????# #???????????????????????????????????? | | ??????????# #######"#######?????????????????????? | | ??????????# """T"""" ??????????????????????? | | ??????????# """ " ????????????????????????? | | ??????????# " """"""????????????????????? | | ??????????# " "????????????????????? | | ??????????# "" "????????????????????? | | ??????????# " @" "????????????????????? | | ??????????# " "????????????????????? | | ??????????# " """"""????????????????????? | | ??????????# " ???????????????????????? | | ??????????# " ?????????????????????? | | ??????????# #######"########????????????????????? | | ??????????# #???????????????????????????????????? | | ########### #???????????????????????????????????? | | + # #???????????????????????????????????? | | ## # #???????????????????????????????????? | | ?# # #???????????????????????????????????? | | ?# " # ###################?????????????????? | | ?# """ + w #???????? | | ?# """ # #???????? | | ?# " ## ###########+#######???????????? | | ## ## #?????????????????????????????? | | + ## #?????????????????????????????? | | ############ #?????????????????????????????? | | ???????????# #?????????????????????????????? | | ???????????# #?????????????????????????????? | | ?????????? #?????????????????????????????? | | ????????? #?????????????????????????????? | | ???????? #?????????????????????????????? | | ????? #?????????????????????????????? | | ? ? #?????????????????????????????? | +----------------------------------------------------+ Best States ------------- Heat Dissipation 85 Energy Generation 53 Energy Capacity 600 Matter Stores 300 Matter Capacity 300 Sight Range 23 Robot Scan Range 20 Terrain Scan Range 24 Terrain Scan Density 1010 ECM Strength 1 Jamming Range 16 Cloak Strength 4 Armor Coverage 375 Power Shielding 90 Propulsion Shielding 90 Point Defense Rating 480 Melee Speed Boost 30 Phase Shifting 5 Evasion (%) 79 Targeting Accuracy 12 Melee Accuracy 20 Core Analysis 8 Recoil Reduction 2 Offensive Hacking 14 Defensive Hacking 10 Authchip Count 1 Trap Extractor Capacity 6 Item Schematics ----------------- Nuclear Core | -8/Recycling | Hacked Cld. Cesium-ion Thruster | -5/Factory | Hacked Dual-blade Saw | -5/Factory | Hacked Assault Drone Bay | -5/Zhirov | Free Exp. Heat Sink | -5/Zhirov | Free Exp. Optical Array | -5/Zhirov | Free Imp. Arc Thrower | -5/Zhirov | Free Lyr. Medium Armor Plating | -4/Factory | Scanalyzed Robot Schematics ------------------ None Fabricated ------------ Jamming Amplifier | x2 | -6/Factory | Preloaded Q-thruster | x2 | -6/Factory | Preloaded Y-64 Sentinel | x2 | -4/Factory | Preloaded Imp. Cloaking Device | x2 | -4/Factory | Preloaded Cld. Cesium-ion Thruster | x1 | -3/Protoforge | Authchip Repaired ---------- Imp. Light Armor Plating | 22% | -4/Factory Lyr. Medium Armor Plating | 43% | -4/Factory Imp. Propulsion Shielding | 26% | -4/Factory Adv. Transmission Jammer | 16% | -3/Quarantine Studied --------- Lgt. Nuclear Core | -6/Factory | Hacked Field Propulsion Drive | -6/Factory | Hacked Field Propulsion Array | -4/Factory | Hacked Impulse Thruster Array | -3/Research | Hacked Impulse Thruster | -3/Quarantine | Hacked Lgt. Antimatter Reactor | -3/Quarantine | Hacked Mic. Antimatter Reactor | -2/Research | Hacked Nuclear Pulse Array | -2/Testing | Hacked Alien Tech Used ----------------- Integrated Dissipator Subatomic Replicator Dimensional Node Initializer Achievements -------------- Loot Taster Challenges ------------ None Game ------ Seed TripodAssemblyLegs Manual? 0 Play Time 05:34:06 Cumulative 327.6 hours Start 2026.02.05 @ 23:54:01 End 2026.02.06 @ 22:57:42 Sessions 3 Manual Loads 0 Difficulty Rogue Special Mode None Game No. 183 Rogue 179 Adventurer 4 Explorer 0 Win Type 0 Total 11 Types 9/0/2/0/0/0/0/0/0/0 Lore% 88 Gallery% 77 Achievement% 58 Wizard Run 0 Options --------- Layout 1 ASCII 0 Keyboard 1 Movement Numpad Keybinds 1 Fullscreen 1 Font 24/Smallcaps Map View 50x35 Zoom Use 0% Tactical HUD 1 Map Filters NONE Filters NONE Steam 1 RUN: 2d8d8a2a-b1a0-490a-b0af-c073fe96c984